Cogmind - Beta 15 *** ADVENTURER MODE // 2025.09.01 @ 09:01:27 Player: Burger1998 Result: Self-destructed Performance ------------- Evolutions (1) 500 Regions Visited (3) 600 Robots Destroyed (18) 90 Value Destroyed (462) 462 Prototype IDs (2) 40 Alien Tech Used (0) 0 Bonus (0) 0 TOTAL SCORE: 1692 Bonus ------- None Cogmind --------- Core Integrity 337/400 Matter 300/300 Energy 238/250 System Corruption 0% Temperature Warm (102) Movement Walking (260) Ox2 Location -9/Materials Parts ------- > --- POWER (1) -------- Ion Engine > --- PROPULSION (3) --- Improved Aluminum Leg Wheel > --- UTILITY (3) ------ Medium Storage Unit Advanced Targeting Computer Utility Shielding > --- WEAPON (2) ------- Ion Cannon Ion Cannon > --- INVENTORY (10) --- Small Storage Unit Large Matter Pod (140) Structural Scanner Advanced Targeting Computer Advanced Targeting Computer Melee Analysis Suite Ion Cannon Shotgun Shotgun Katana Peak State ------------ > --- POWER ------------ Ion Engine > --- PROPULSION ------- Improved Aluminum Leg Improved Aluminum Leg Wheel > --- UTILITY ---------- Medium Storage Unit Advanced Targeting Computer Utility Shielding > --- WEAPON ----------- Ion Cannon Ion Cannon > --- INVENTORY -------- Small Storage Unit Large Matter Pod Structural Scanner Advanced Targeting Computer Advanced Targeting Computer Melee Analysis Suite Ion Cannon Assault Rifle Shotgun Katana [Rating: 19] Favorites ----------- Power Ion Engine Engine Ion Engine Propulsion Wheel Leg Improved Aluminum Leg Wheel Wheel Utility Advanced Targeting Computer Device Tractor Beam Storage Medium Storage Unit Processor Advanced Targeting Computer Hackware System Shield Protection Utility Shielding Weapon Ion Cannon Energy Gun Medium Laser Energy Cannon Ion Cannon Ballistic Gun Assault Rifle Special Melee Weapon Datajack Build | -11 -10 -10 -9 ------- Run | Yrd Mat Min Mat Slots Evolved 2 | . . . 2 Power . | . . . . Propulsion 1 | . . . 1 Utility 1 | . . . 1 Weapon . | . . . . Parts Attached 21 | 6 4 . 11 Power 2 | 1 . . 1 Engine 2 | 1 . . 1 Core . | . . . . Reactor . | . . . . Propulsion 4 | 2 . . 2 Treads . | . . . . Leg 2 | . . . 2 Wheel 2 | 2 . . . Hover . | . . . . Flight . | . . . . Utility 8 | 1 1 . 6 Device 1 | . 1 . . Storage 3 | 1 . . 2 Processor 1 | . . . 1 Hackware 2 | . . . 2 Protection 1 | . . . 1 Artifact . | . . . . Weapon 7 | 2 3 . 2 Energy Gun 2 | 2 . . . Energy Cannon 2 | . . . 2 Ballistic Gun 2 | . 2 . . Ballistic Cannon . | . . . . Launcher . | . . . . Special Weapon . | . . . . Impact Weapon . | . . . . Slashing Weapon . | . . . . Piercing Weapon . | . . . . Special Melee Weapon 1 | . 1 . . Unidentified Prototypes . | . . . . Parts Lost 1 | . . . 1 Power . | . . . . Propulsion 1 | . . . 1 Utility . | . . . . Weapon . | . . . . Highest Loss Streak 1 | . . . 1 To Critical Strikes 1 | . . . 1 Average Backups 7 | 1 6 7 8 Power . | . 1 1 . Propulsion . | . 2 2 . Utility 3 | . . 2 4 Weapon 3 | . 2 2 3 Tool/Special . | . . . . Unused Backups 14 | . 1 . 13 Power 1 | . . . 1 Propulsion 2 | . . . 2 Utility 5 | . . . 5 Weapon 6 | . 1 . 5 Tool/Special . | . . . . Average Slot Usage (%) 93 | . 94 100 92 Engine 11 | . 14 14 11 Leg 9 | . . . 12 Wheel 17 | . 28 28 13 Device 2 | . 10 14 . Storage 11 | . 14 14 11 Processor 7 | . . . 10 Hackware 1 | . . . 2 Protection 6 | . . . 8 Energy Gun 1 | . 4 . . Energy Cannon 14 | . . . 19 Ballistic Gun 4 | . 15 14 . Special Melee Weapon 3 | . 6 14 1 Peak Build Rating 19 | 6 7 7 19 Average Rating 13 | 4 6 7 17 On Entrance 5 | . 6 7 7 Naked Turns . | . . . . Heaviest Build 28 | 12 13 12 28 Greatest Support 26 | 26 26 26 26 Greatest Overweight (x) 2 | . . . 2 Average Overweight (x) . | . . . . Largest Inventory Capacity 10 | 8 8 8 10 Average Capacity 8 | 6 8 8 9 Most Carried 10 | 4 8 7 10 Average Carried 7 | 1 6 7 8 Final Capacity 10 | 8 8 8 10 Final Carried 10 | 4 7 7 10 Class Distribution -------------------- 89% | Mutant 10% | Hacker-Mutant Dominant Class ---------------- Mutant | -10/Materials Mutant | -10/Mines Mutant | -9/Materials Resources | -11 -10 -10 -9 ----------- Run | Yrd Mat Min Mat Matter Collected 564 | 125 17 . 422 Remotely 17 | . 17 . . Salvage Created 639 | . 17 . 622 Parts 33 | . . . 33 Haulers Intercepted . | . . . . Recyclers Shooed . | . . . . Parts Field Recycled . | . . . . Retrieved Matter . | . . . . Parts Self-Destructed . | . . . . Prevented . | . . . . Kills | -11 -10 -10 -9 ------- Run | Yrd Mat Min Mat Combat Hostiles Destroyed 13 | . . . 13 Cannons 13 | . . . 13 Classes Destroyed 6 | . 1 . 5 Recycler 1 | . . . 1 Watcher 4 | . 1 . 3 Swarmer 4 | . . . 4 Grunt 5 | . . . 5 Duelist 1 | . . . 1 Sentry 3 | . . . 3 Best Kill Streak 5 | . 1 . 5 Combat Bots Only 4 | . . . 4 Max Kills in Single Turn 2 | . 1 . 2 Gunslinging . | . . . . Exploded . | . . . . Melee . | . . . . Uniques/NPCs Destroyed . | . . . . Combat | -11 -10 -10 -9 -------- Run | Yrd Mat Min Mat Hostile Shots Fired 55 | . . . 55 Missed 23 | . . . 23 Hits 32 | . . . 32 Projectile 32 | . . . 32 Critical Strikes 1 | . . . 1 Damage Taken 277 | . . . 277 Core 63 | . . . 63 Absorbed by Shields . | . . . . Redirected to Shielding 4 | . . . 4 Ignored by Resistances 81 | . . . 81 Core Remaining (%) 100 | 100 . 100 . Volleys Fired 34 | . 2 . 32 Largest 2 | . 2 . 2 Hottest 120 | . 40 . 120 Shots Fired 56 | . 4 . 52 Gun 4 | . 4 . . Cannon 52 | . . . 52 Launcher . | . . . . Special . | . . . . Kinetic 4 | . 4 . . Thermal 52 | . . . 52 Explosive . | . . . . Electromagnetic . | . . . . Robot Hit Streak 12 | . 2 . 12 Robot Miss Streak 2 | . 1 . 2 Penetration Max . | . . . . Secondary Targets . | . . . . Shots Hit Robots 40 | . 4 . 36 Core Hits 20 | . 1 . 19 Critical Kills . | . . . . Critical Parts Destroyed . | . . . . Critical Strikes . | . . . . Melee Attacks 1 | . 1 . . Impact . | . . . . Slashing . | . . . . Piercing . | . . . . Sneak Attacks 1 | . 1 . . Combat Hostiles . | . . . . Follow-up Attacks . | . . . . Damage Inflicted 960 | . 36 . 924 Guns 36 | . 36 . . Cannons 922 | . . . 922 Explosions . | . . . . Melee . | . . . . Ramming 2 | . . . 2 Kinetic 36 | . 36 . . Thermal 922 | . . . 922 Explosive . | . . . . Electromagnetic . | . . . . Impact . | . . . . Slashing . | . . . . Piercing . | . . . . Highest Corruption . | . . . . Average Corruption . | . . . . Corruption Purged . | . . . . Corruption Blocked . | . . . . Overload Shots . | . . . . Overflow Damage 3 | . . . 3 Projectiles 3 | . . . 3 Explosions . | . . . . Melee . | . . . . Knockbacks . | . . . . Impact . | . . . . Kinetic . | . . . . Secondary . | . . . . Self-Inflicted Damage . | . . . . Shots . | . . . . Rammed . | . . . . Targets Rammed 1 | . . . 1 Kicked 1 | . . . 1 Crushed . | . . . . Highest Temperature 318 | . . . 318 Average Temperature 94 | . . . 94 Received Heat Transfer 99 | . . . 99 Effects 1 | . . . 1 Short Circuit 1 | . . . 1 Siege Activations . | . . . . Martial Activations . | . . . . Shielding Activations . | . . . . Robots Disrupted . | . . . . Combat Hostiles . | . . . . Robots Corrupted . | . . . . Combat Hostiles . | . . . . Parts Fried . | . . . . Impact Corruptions . | . . . . Robots Melted . | . . . . Combat Hostiles . | . . . . Parts Melted 5 | . . . 5 Heat Transferred 1480 | . . . 1480 Parts Sabotaged . | . . . . Parts Stolen . | . . . . Parts Stripped . | . . . . Power Chain Reactions . | . . . . Alert | -11 -10 -10 -9 ------- Run | Yrd Mat Min Mat Maximum Alert Level . | . . . . Low Security (%) 100 | 100 100 100 100 Level 1 . | . . . . Level 2 . | . . . . Level 3 . | . . . . Level 4 . | . . . . Level 5 . | . . . . High Security . | . . . . Max Security . | . . . . Peak Influence 136 | . 10 . 136 Initial . | . . . . Average 58 | . . . 81 Influence Increases 386 | . 17 . 369 Destroy 0b10 Robot/C 260 | . . . 260 Destroy 0b10 Robot/NC 25 | . 5 . 20 Destroy Leader 68 | . 2 . 66 Successful Hack 14 | . 10 . 4 Destroy Structure 4 | . . . 4 Lose Combat Pursuer 15 | . . . 15 Influence Decreases 317 | . 17 . 300 Time Decay 307 | . 17 . 290 Lost Part 10 | . . . 10 Squads Dispatched 2 | . 1 . 1 Investigation 1 | . 1 . . Extermination . | . . . . Reinforcement 1 | . . . 1 Assault . | . . . . Garrison . | . . . . Intercept . | . . . . Searches Triggered . | . . . . Construction Impeded . | . . . . Haulers Reinforced . | . . . . Active Scanning Responses . | . . . . Cargo Convoy Interrupts . | . . . . Stealth | -11 -10 -10 -9 --------- Run | Yrd Mat Min Mat Distress Signals 2 | . . . 2 Communications Jammed . | . . . . Distress Signals . | . . . . Times Spotted 18 | . 1 . 17 Peak Tracking Total 4 | . 2 . 4 Tactical Retreats 1 | . . . 1 Traps | -11 -10 -10 -9 ------- Run | Yrd Mat Min Mat Traps Triggered . | . . . . Indirectly . | . . . . Trap Hack Attempts . | . . . . Triggered . | . . . . Disarmed . | . . . . Reprogrammed . | . . . . Reused . | . . . . Traps Extracted . | . . . . Installed . | . . . . Triggered . | . . . . Machines | -11 -10 -10 -9 ---------- Run | Yrd Mat Min Mat Machines Disabled . | . . . . Max in Single Turn . | . . . . Machines Repaired . | . . . . Machines Dismantled . | . . . . Machines Sabotaged . | . . . . Overloaded Fab Kills . | . . . . Hacking | -11 -10 -10 -9 --------- Run | Yrd Mat Min Mat Machines Accessed 4 | . 2 . 2 Terminals 3 | . 1 . 2 Fabricators . | . . . . Repair Stations . | . . . . Recycling Units 1 | . 1 . . Scanalyzers . | . . . . Garrison Access . | . . . . Total Hacks 7 | . 4 . 3 Successful 7 | . 4 . 3 Failed . | . . . . Catastrophic . | . . . . Database Lockouts . | . . . . Manual . | . . . . Terminals 4 | . 1 . 3 Fabricators . | . . . . Repair Stations . | . . . . Recycling Units 3 | . 3 . . Scanalyzers . | . . . . Garrison Access . | . . . . Terminal Hacks 4 | . 1 . 3 Record 1 | . 1 . . Prototype ID Bank 1 | . . . 1 Alert Level 2 | . . . 2 Fabricator Hacks . | . . . . Repair Station Hacks . | . . . . Recycling Unit Hacks 3 | . 3 . . Recycle Component 2 | . 2 . . Process 1 | . 1 . . Scanalyzer . | . . . . Garrison Access Hacks . | . . . . Unauthorized Hacks . | . . . . Terminals . | . . . . Fabricators . | . . . . Repair Stations . | . . . . Recycling Units . | . . . . Scanalyzers . | . . . . Garrison Access . | . . . . Data Cores Recovered . | . . . . Used . | . . . . Hacking Detections 2 | . 2 . . Full Trace Events 1 | . 1 . . Feedback Events . | . . . . Feedback Blocked . | . . . . Robot Schematics Acquired . | . . . . Robots Built . | . . . . Authchips . | . . . . Time . | . . . . Total Robot Build Rating . | . . . . Part Schematics Acquired . | . . . . Parts Built . | . . . . Authchips . | . . . . Time . | . . . . Total Part Build Rating . | . . . . Parts Repaired . | . . . . Time . | . . . . Parts Recycled 2 | . 2 . . Recycled Matter 77 | . 77 . . Retrieved Matter . | . . . . Retrieved Components . | . . . . Parts Scanalyzed . | . . . . Part Schematics Acquired . | . . . . Parts Damaged . | . . . . Bothacking | -11 -10 -10 -9 ------------ Run | Yrd Mat Min Mat Used RIF Installer . | . . . . Robots Hacked 1 | . 1 . . Non-combat 1 | . 1 . . Combat . | . . . . Robot Hacks Applied 1 | . 1 . . no_distress 1 | . 1 . . Relay Couplers Released . | . . . . Fabnet Peak Effective % . | . . . . Robots Rewired . | . . . . Allies Hacked . | . . . . Hacks Repelled . | . . . . Allies | -11 -10 -10 -9 -------- Run | Yrd Mat Min Mat Total Allies . | . . . . Largest Group . | . . . . Highest-Rated Group . | . . . . Highest-Rated Ally . | . . . . Total Orders . | . . . . Ally Attacks . | . . . . Total Damage . | . . . . Kills . | . . . . Allies Corrupted . | . . . . Allies Melted . | . . . . Intel | -11 -10 -10 -9 ------- Run | Yrd Mat Min Mat Active Infowar (turns) . | . . . . Robot Analysis Total . | . . . . Derelict Logs Recovered . | . . . . Drone Launches . | . . . . Drone Recoveries . | . . . . Exploration | -11 -10 -10 -9 ------------- Run | Yrd Mat Min Mat Turns Passed 864 | 64 168 10 622 Spaces Moved 506 | 60 146 12 288 Core 7 | 7 . . . Treads . | . . . . Legs 185 | . . . 185 Wheels 314 | 53 146 12 103 Hover . | . . . . Flight . | . . . . Fastest Speed 50 | 50 90 90 90 Average Speed 136 | 85 90 90 172 Slowest Speed 260 | 100 90 90 260 Overloaded Moves . | . . . . Propulsion Burnouts . | . . . . Robots Hopped . | . . . . Potential Cave-ins . | . . . . Cave-ins Triggered . | . . . . Exploration Rate (%) 16 | 4 32 6 23 Regions Visited 3 Branch Regions 1 Pre-discovered Areas . | . . . . Known Exits Taken . | . . . . Unknown Exits Taken 3 | 1 1 1 . Scrap Searched . | . . . . Spaces Dug . | . . . . Terrain Destroyed 4 | . . . 4 Melee . | . . . . Projectile 4 | . . . 4 AOE . | . . . . Terrain Rammed . | . . . . Walls Destroyed . | . . . . Machines Disabled . | . . . . Actions | -11 -10 -10 -9 --------- Run | Yrd Mat Min Mat Total 621 | 69 178 11 363 Wait 18 | . 16 . 2 Move 503 | 59 145 11 288 Hop . | . . . . Pick Up 23 | 4 5 . 14 Fast Attach 17 | 6 3 . 8 Attach 5 | . 2 . 3 Detach 2 | . 2 . . Swap . | . . . . Drop 17 | . 2 . 15 Fire 34 | . 2 . 32 Melee 1 | . 1 . . Ram . | . . . . Kick 1 | . . . 1 Crush . | . . . . Escape Stasis . | . . . . Rewire . | . . . . Trap . | . . . . Miscellaneous . | . . . . Route ------- -11/Scrapyard -10/Materials -10/Mines -9/Materials History --------- Turn | Location | Event 30 | -11/Scrapyard | Discovered new exit (range 15) 65 | -11/Scrapyard | Entered Materials 224 | -10/Materials | Discovered new exit (range 9) 233 | -10/Materials | Entered Mines 233 | -10/Mines | Discovered new exit (range 11) 243 | -10/Mines | Entered Materials 243 | -9/Materials | Evolved 2 slots: Propulsion x1, Utility x1 643 | -9/Materials | Build established: Mutant 865 | -9/Materials | Self-destructed Last Messages --------------- K-01 Serf collects debris. R-06 Scavenger collects Hvy. Assault Rifle. K-01 Serf cleans the Atomic Centrifuge. W-16 Scout distress signal alerts nearby ally. K-01 Serf collects debris. R-06 Scavenger collects Lgt. Armor Plating. K-01 Serf collects debris. K-01 Serf cleans the Atomic Centrifuge. Kicked R-06 Scavenger. Connecting with Terminal... >>Alert(Check) Current Alert Level: Low Security Hvy. Assault Rifle melted. Lgt. Armor Plating melted. Y-45 Defender destroyed. R-06 Scavenger collects Heat Sink. Acquired 59 matter. Hover Unit melted. W-16 Scout destroyed. K-01 Serf collects debris. Map ----- +----------------------------------------------------+ | ?????????????????????????????????????????????????? | | ????????????????????????????????????????#####????? | | ???????????????????????????????????????? ##???? | | ???????????????????????????????????????? ????? | | ???????????????????????????????????????? #????? | | ????????########??????????############### #????? | | ????????# #??????????# %# #????? | | ????????# """ ############ *** """ # #????? | | ????????# """ # + *** """ + #????? | | ????????# """ # ######## *** """ # #????? | | ????????# # #??????# # #????? | | ????????# """ + #??????# # #????? | | ????????# """ # #??????########## #### #????? | | ????????# """ # #??#######??????###??# #????? | | ????????# # #### #???????????# #????? | | ????????# # #???????????# #????? | | ????????# "T" + #???????????# #????? | | ????????# """ # #????######## #????? | | ????????# ####+### #????#! # #????? | | ????????######## ## ##????# # #????? | | ???????????????#" = ## #?????#"" # #????? | | ???????????????#T ## #??????"Y # #????? | | ???????????????#" ## #???????" # #????? | | ???????????????# !! ## #???????? #% #????? | | ??????????????# ![ ## ###########/## ###### | | ??????????????########## @ a % | | ???????????????????? ! | | ???????????????? u %=ukk % | | ???????????? a ######## ;########### | | ???????????##+########## #??????# # #? | | ???????????????????????# #??????# # T #? | | ???????????????????????# #??????# + #? | | ???????????????????????# #??????# # """ """ #? | | ???????????????????????# #??????# # """ """ #? | | ???????????????????????# #??????# # """ """??? | | ???????????????????????#k # ????# # ??? | | ???????????????????????+ # ??# # ]??? | | ???????????????????????# # """ # ##########?? | | ???????????????????????# # """ / #??????????? | | ???????????????????????# #! """ # #??????????? | | ???????????????????????# # # #??????????? | | ???????????????????????# # """?# #??????????? | | ???????????????????????# # ""??# #??????????? | | ???????????????????????# # "???# #??????????? | | ???????????????????????# # ???# #??????????? | | ???????????????????????# ######## #??????????? | | ???????????????????????# ^ #??????????? | | ???????????????????????# [ #??????????? | | ???????????????????????# ^ #??????????? | | ???????????????????????# ^ #####??????????? | +----------------------------------------------------+ Best States ------------- Heat Dissipation 28 Energy Generation 10 Energy Capacity 250 Matter Stores 300 Matter Capacity 450 Sight Range 16 Terrain Scan Density 10 Resistance: KI 20 Resistance: TH 20 Resistance: EX 20 Resistance: EM 20 Resistance: I 20 Resistance: S 20 Resistance: P 20 Utility Shielding 33 Evasion (%) 55 Targeting Accuracy 8 Offensive Hacking 10 Defensive Hacking 20 Item Schematics ----------------- None Robot Schematics ------------------ None Fabricated ------------ Nothing Repaired ---------- Nothing Alien Tech Used ----------------- None Achievements -------------- None Challenges ------------ None Game ------ Seed ServoCompositeFlightbrick Manual? 0 Play Time 00:13:46 Cumulative 0.9 hours Start 2025.08.29 @ 15:03:01 End 2025.09.01 @ 09:01:27 Sessions 1 Manual Loads 0 Difficulty Adventurer Special Mode None Game No. 4 Rogue 2 Adventurer 2 Explorer 0 Win Type - Total 0 Types 0/0/0/0/0/0/0/0/0/0 Lore% 0 Gallery% 3 Achievement% 8 Wizard Run 0 Options --------- Layout 1 ASCII 0 Keyboard 0 Movement Arrows Keybinds 0 Fullscreen 1 Font 16/SmallcapsGlow Map View 55x38 Zoom Use 0% Tactical HUD 0 Map Filters NONE Filters NONE Steam 1 RUN: d2bb90c4-c5f4-4eb7-9367-55337e44097f